[Event "*** Titled Tuesday 3|2 Blitz"]
[Site "Chess.com"]
[Date "2017.03.07"]
[Round "9"]
[White "Dlugy"]
[Black "pKiLz5Rn9b"]
[Result "1-0"]
[WhiteElo "2667"]
[BlackElo "2551"]
[TimeControl "180+2"]
[EndTime "15:10:29 PST"]
[Termination "Dlugy won by resignation"]

1. d4 {[%clk 0:03:02]} 1... Nf6 {[%clk 0:03:00.4]} 2. Bf4 {[%clk 0:03:02.6]}
2... e6 {[%clk 0:03:01.5]} 3. e3 {[%clk 0:03:03.1]} 3... d5 {[%clk 0:03:01.8]}
4. Nd2 {[%clk 0:03:03.3]} 4... Bd6 {[%clk 0:03:03.2]} 5. Bg3 {[%clk 0:03:03.7]}
5... O-O {[%clk 0:03:04.3]} 6. Ngf3 {[%clk 0:03:04.1]} 6... b6 {[%clk
0:03:05.8]} 7. Ne5 {[%clk 0:03:00.2]} 7... c5 {[%clk 0:03:04.4]} 8. c3 {[%clk
0:03:00.5]} 8... Bb7 {[%clk 0:03:01]} 9. Bd3 {[%clk 0:03:01.1]} 9... Nc6 {[%clk
0:03:01.2]} 10. O-O {[%clk 0:02:57.6]} 10... Qc7 {[%clk 0:03:02.1]} 11. f4
{[%clk 0:02:58.7]} 11... Ne7 {[%clk 0:02:57]} 12. Qb1 {[%clk 0:02:40.5]} 12...
Rae8 {[%clk 0:02:29.7]} 13. Bh4 {[%clk 0:02:39.7]} 13... Ng6 {[%clk 0:02:21.2]}
14. Bg5 {[%clk 0:02:21.9]} 14... Be7 {[%clk 0:02:08.7]} 15. Bxf6 {[%clk
0:02:17.5]} 15... Bxf6 {[%clk 0:02:08.7]} 16. Rf3 {[%clk 0:02:09.2]} 16... Bd8
{[%clk 0:02:04.4]} 17. Rh3 {[%clk 0:02:07]} 17... f5 {[%clk 0:02:03.5]} 18. Nxg6
{[%clk 0:01:46.5]} 18... hxg6 {[%clk 0:02:05.4]} 19. Nf3 {[%clk 0:01:47.9]}
19... Bf6 {[%clk 0:02:06.9]} 20. Qe1 {[%clk 0:01:44.1]} 20... Kf7 {[%clk
0:02:05.5]} 21. Qe2 {[%clk 0:01:24]} 21... Rc8 {[%clk 0:01:58.2]} 22. Ba6 {[%clk
0:01:23.8]} 22... Bxa6 {[%clk 0:01:57.3]} 23. Qxa6 {[%clk 0:01:24.6]} 23... c4
{[%clk 0:01:56.8]} 24. a4 {[%clk 0:01:22.6]} 24... Qd7 {[%clk 0:01:56.2]} 25.
Qb5 {[%clk 0:01:20.5]} 25... Rfd8 {[%clk 0:01:46.1]} 26. Ne1 {[%clk 0:01:19.7]}
26... Ra8 {[%clk 0:01:40.5]} 27. Nc2 {[%clk 0:01:18.4]} 27... a6 {[%clk
0:01:41]} 28. Qxd7+ {[%clk 0:01:17.4]} 28... Rxd7 {[%clk 0:01:42.9]} 29. a5
{[%clk 0:01:18.5]} 29... bxa5 {[%clk 0:01:40.2]} 30. Rxa5 {[%clk 0:01:16.3]}
30... Rb7 {[%clk 0:01:41.2]} 31. Nb4 {[%clk 0:01:17]} 31... Be7 {[%clk
0:01:37.6]} 32. Nc6 {[%clk 0:01:07.5]} 32... Bd6 {[%clk 0:01:37.7]} 33. Ra2
{[%clk 0:01:06.3]} 33... Rb6 {[%clk 0:01:34.1]} 34. Ne5+ {[%clk 0:00:49.8]}
34... Bxe5 {[%clk 0:01:35]} 35. fxe5 {[%clk 0:00:50.6]} 35... Rab8 {[%clk
0:01:36.4]} 36. Rf3 {[%clk 0:00:52.2]} 36... Rxb2 {[%clk 0:01:35.1]} 37. Rxa6
{[%clk 0:00:45.7]} 37... Rc2 {[%clk 0:01:31.8]} 38. Ra7+ {[%clk 0:00:47]} 38...
Kf8 {[%clk 0:01:31.1]} 39. h3 {[%clk 0:00:45.5]} 39... Rxc3 {[%clk 0:01:20.4]}
40. Rg3 {[%clk 0:00:46.5]} 40... Rcb3 {[%clk 0:01:20]} 41. Rxg6 {[%clk
0:00:47.2]} 41... R3b7 {[%clk 0:01:12.7]} 42. Rxb7 {[%clk 0:00:34]} 42... Rxb7
{[%clk 0:01:13.4]} 43. Rxe6 {[%clk 0:00:35.9]} 43... Rc7 {[%clk 0:01:06.6]} 44.
Ra6 {[%clk 0:00:36.7]} 44... Ke7 {[%clk 0:00:53.1]} 45. Kf2 {[%clk 0:00:37]}
45... Rb7 {[%clk 0:00:52.6]} 46. Ra5 {[%clk 0:00:35.6]} 46... Ke6 {[%clk
0:00:51.7]} 47. Ra6+ {[%clk 0:00:36.2]} 47... Ke7 {[%clk 0:00:53.1]} 48. Rd6
{[%clk 0:00:32.5]} 48... Rb2+ {[%clk 0:00:44.8]} 49. Kf3 {[%clk 0:00:32.9]}
49... Rb5 {[%clk 0:00:38.8]} 50. h4 {[%clk 0:00:25.7]} 50... Ra5 {[%clk
0:00:32.4]} 51. h5 {[%clk 0:00:26.2]} 51... Rb5 {[%clk 0:00:31.8]} 52. g3 {[%clk
0:00:25.8]} 52... Ra5 {[%clk 0:00:31.8]} 53. Kf4 {[%clk 0:00:26.3]} 53... Ra1
{[%clk 0:00:18.7]} 54. Rxd5 {[%clk 0:00:26.4]} 54... Rc1 {[%clk 0:00:13.1]} 55.
Kxf5 {[%clk 0:00:24.7]} 55... c3 {[%clk 0:00:13.9]} 56. Rc5 {[%clk 0:00:26]}
56... c2 {[%clk 0:00:14.9]} 57. Ke4 {[%clk 0:00:27]} 57... Ke6 {[%clk
0:00:14.6]} 58. d5+ {[%clk 0:00:24.8]} 58... Kd7 {[%clk 0:00:15.4]} 59. e6+
{[%clk 0:00:25.8]} 59... Kd6 {[%clk 0:00:16.8]} 60. Rc6+ {[%clk 0:00:26.5]}
60... Ke7 {[%clk 0:00:18.3]} 61. Ke5 {[%clk 0:00:24.3]} 61... Re1 {[%clk
0:00:12.3]} 62. d6+ {[%clk 0:00:25.2]} 62... Kd8 {[%clk 0:00:12.2]} 63. e7+
{[%clk 0:00:25.6]} 1-0

[Event "*** Titled Tuesday 3|2 Blitz"]
[Site "Chess.com"]
[Date "2017.03.07"]
[Round "9"]
[White "AdrianaNikolova"]
[Black "mwpchess"]
[Result "1-0"]
[WhiteElo "2330"]
[BlackElo "2373"]
[TimeControl "180+2"]
[EndTime "15:10:49 PST"]
[Termination "AdrianaNikolova won on time"]

1. e4 {[%clk 0:03:01.9]} 1... c6 {[%clk 0:02:30.8]} 2. d4 {[%clk 0:03:00.9]}
2... d5 {[%clk 0:02:30.3]} 3. Nd2 {[%clk 0:03:02]} 3... dxe4 {[%clk 0:02:30]} 4.
Nxe4 {[%clk 0:03:03.9]} 4... Bf5 {[%clk 0:02:28.7]} 5. Ng3 {[%clk 0:03:04.5]}
5... Bg6 {[%clk 0:02:29.4]} 6. h4 {[%clk 0:03:05.2]} 6... h6 {[%clk 0:02:29.8]}
7. Nf3 {[%clk 0:03:05.7]} 7... Nd7 {[%clk 0:02:29.8]} 8. Bd3 {[%clk 0:03:07]}
8... Bxd3 {[%clk 0:02:29]} 9. Qxd3 {[%clk 0:03:08.9]} 9... e6 {[%clk 0:02:29.3]}
10. Bd2 {[%clk 0:03:10.1]} 10... Ngf6 {[%clk 0:02:29.6]} 11. O-O-O {[%clk
0:03:06.7]} 11... Be7 {[%clk 0:02:29.4]} 12. Ne4 {[%clk 0:03:06]} 12... Nxe4
{[%clk 0:02:29.3]} 13. Qxe4 {[%clk 0:03:07.9]} 13... Nf6 {[%clk 0:02:29.9]} 14.
Qe2 {[%clk 0:03:09.4]} 14... Qd5 {[%clk 0:02:29.8]} 15. Kb1 {[%clk 0:03:10.9]}
15... Qe4 {[%clk 0:02:29.5]} 16. Be3 {[%clk 0:03:12.4]} 16... Nd5 {[%clk
0:02:26.9]} 17. Ne5 {[%clk 0:03:12.4]} 17... Nxe3 {[%clk 0:02:22.2]} 18. fxe3
{[%clk 0:03:11.9]} 18... Bf6 {[%clk 0:01:58.6]} 19. Nd3 {[%clk 0:03:04.9]} 19...
O-O-O {[%clk 0:01:52.1]} 20. Nc5 {[%clk 0:02:48.4]} 20... Qg6 {[%clk 0:01:44.6]}
21. g4 {[%clk 0:02:29.2]} 21... Be7 {[%clk 0:01:43]} 22. Nd3 {[%clk 0:02:22.7]}
22... Bd6 {[%clk 0:01:41.1]} 23. e4 {[%clk 0:02:18.1]} 23... Bc7 {[%clk
0:01:36.3]} 24. c3 {[%clk 0:01:53.6]} 24... e5 {[%clk 0:01:27.9]} 25. Nc5 {[%clk
0:01:04.8]} 25... exd4 {[%clk 0:01:22.4]} 26. cxd4 {[%clk 0:01:05.6]} 26... Bb6
{[%clk 0:01:21.2]} 27. Nb3 {[%clk 0:01:05.4]} 27... Rhe8 {[%clk 0:01:19.3]} 28.
Rhe1 {[%clk 0:01:03]} 28... f6 {[%clk 0:01:17.8]} 29. h5 {[%clk 0:01:01.5]}
29... Qf7 {[%clk 0:01:17.5]} 30. Rd3 {[%clk 0:00:55.4]} 30... Kb8 {[%clk
0:01:16.4]} 31. e5 {[%clk 0:00:49.5]} 31... fxe5 {[%clk 0:01:04.7]} 32. dxe5
{[%clk 0:00:51.4]} 32... Rxd3 {[%clk 0:01:02.4]} 33. Qxd3 {[%clk 0:00:53.3]}
33... Qe6 {[%clk 0:01:00.9]} 34. Qf5 {[%clk 0:00:51.1]} 34... a5 {[%clk
0:00:50.1]} 35. Qxe6 {[%clk 0:00:43.3]} 35... Rxe6 {[%clk 0:00:49.4]} 36. Nd2
{[%clk 0:00:44.7]} 36... Bc7 {[%clk 0:00:44.1]} 37. Nf3 {[%clk 0:00:46.1]} 37...
Kc8 {[%clk 0:00:40.9]} 38. Kc2 {[%clk 0:00:47.6]} 38... g6 {[%clk 0:00:37.4]}
39. Kd3 {[%clk 0:00:47.1]} 39... gxh5 {[%clk 0:00:33.2]} 40. gxh5 {[%clk
0:00:49]} 40... Kd7 {[%clk 0:00:30.4]} 41. Ke4 {[%clk 0:00:50]} 41... Bb6 {[%clk
0:00:24.9]} 42. Kf5 {[%clk 0:00:46.6]} 42... Ke7 {[%clk 0:00:23]} 43. Nh4 {[%clk
0:00:46.1]} 43... Bd4 {[%clk 0:00:19]} 44. Ng6+ {[%clk 0:00:45.9]} 44... Kf7
{[%clk 0:00:18.5]} 45. Rd1 {[%clk 0:00:43.9]} 45... c5 {[%clk 0:00:16.5]} 46.
Rf1 {[%clk 0:00:41.6]} 46... b6 {[%clk 0:00:12.6]} 47. Ke4+ {[%clk 0:00:41.8]}
47... Kg7 {[%clk 0:00:11.5]} 48. Kd5 {[%clk 0:00:43]} 48... Re8 {[%clk
0:00:11.3]} 49. e6 {[%clk 0:00:44.1]} 49... Bxb2 {[%clk 0:00:10.5]} 50. Rf7+
{[%clk 0:00:43.8]} 50... Kg8 {[%clk 0:00:09.3]} 51. Kd6 {[%clk 0:00:31.8]} 51...
c4 {[%clk 0:00:09.2]} 52. Rc7 {[%clk 0:00:28.2]} 52... b5 {[%clk 0:00:08]} 53.
Kd7 {[%clk 0:00:26.6]} 53... Rb8 {[%clk 0:00:07.1]} 54. Rc5 {[%clk 0:00:08.5]}
54... c3 {[%clk 0:00:06.2]} 55. Ne7+ {[%clk 0:00:09.3]} 55... Kg7 {[%clk
0:00:04]} 56. Nd5 {[%clk 0:00:11.2]} 56... b4 {[%clk 0:00:02.7]} 57. e7 {[%clk
0:00:12.5]} 57... Rb7+ {[%clk 0:00:02.6]} 58. Nc7 {[%clk 0:00:09.5]} 1-0

[Event "*** Titled Tuesday 3|2 Blitz"]
[Site "Chess.com"]
[Date "2017.03.07"]
[Round "9"]
[White "GMHess"]
[Black "igorkovalenko"]
[Result "1-0"]
[WhiteElo "2600"]
[BlackElo "2685"]
[TimeControl "180+2"]
[EndTime "15:11:17 PST"]
[Termination "GMHess won by checkmate"]

1. d4 {[%clk 0:03:02]} 1... Nf6 {[%clk 0:03:00.6]} 2. c4 {[%clk 0:03:02.6]} 2...
e6 {[%clk 0:03:01.7]} 3. Nc3 {[%clk 0:03:03.1]} 3... Bb4 {[%clk 0:03:02.5]} 4.
Qc2 {[%clk 0:02:50.4]} 4... d6 {[%clk 0:03:02.2]} 5. g3 {[%clk 0:02:49.5]} 5...
c5 {[%clk 0:03:02]} 6. dxc5 {[%clk 0:02:50.2]} 6... dxc5 {[%clk 0:03:02.6]} 7.
Bg2 {[%clk 0:02:49.4]} 7... Nc6 {[%clk 0:03:03.8]} 8. Bxc6+ {[%clk 0:02:48.7]}
8... bxc6 {[%clk 0:03:05.7]} 9. Nf3 {[%clk 0:02:50]} 9... O-O {[%clk 0:02:39]}
10. O-O {[%clk 0:02:47.6]} 10... Re8 {[%clk 0:02:32.2]} 11. Bf4 {[%clk
0:02:32.9]} 11... Bxc3 {[%clk 0:01:59.8]} 12. Qxc3 {[%clk 0:02:31.5]} 12... h6
{[%clk 0:01:50.9]} 13. Rfd1 {[%clk 0:02:24.8]} 13... Qb6 {[%clk 0:01:48.2]} 14.
Be5 {[%clk 0:02:25.4]} 14... Ne4 {[%clk 0:01:45]} 15. Qe3 {[%clk 0:02:11.2]}
15... f5 {[%clk 0:01:39.4]} 16. Rd3 {[%clk 0:01:19.2]} 16... Re7 {[%clk
0:01:37.9]} 17. Rad1 {[%clk 0:01:17.6]} 17... Ba6 {[%clk 0:01:37.5]} 18. b3
{[%clk 0:01:05.6]} 18... Rae8 {[%clk 0:01:36.5]} 19. Nh4 {[%clk 0:00:59.1]}
19... Kh7 {[%clk 0:01:29.6]} 20. f3 {[%clk 0:00:51.5]} 20... Ng5 {[%clk
0:01:30.5]} 21. Bd6 {[%clk 0:00:51.1]} 21... Rf7 {[%clk 0:01:31.9]} 22. Bxc5
{[%clk 0:00:47.1]} 22... Qa5 {[%clk 0:01:32.3]} 23. a4 {[%clk 0:00:30.1]} 23...
e5 {[%clk 0:01:32]} 24. Rd7 {[%clk 0:00:25.5]} 24... Bc8 {[%clk 0:01:30.4]} 25.
Rxf7 {[%clk 0:00:20.9]} 25... Nxf7 {[%clk 0:01:32.3]} 26. Bxa7 {[%clk
0:00:10.1]} 26... g5 {[%clk 0:01:33.4]} 27. Ng2 {[%clk 0:00:10.8]} 27... Be6
{[%clk 0:01:03]} 28. Qb6 {[%clk 0:00:08.3]} 28... Qc3 {[%clk 0:00:59.4]} 29. Qe3
{[%clk 0:00:08.4]} 29... Qc2 {[%clk 0:00:54.8]} 30. Rc1 {[%clk 0:00:08.7]} 30...
Qb2 {[%clk 0:00:54.9]} 31. Qc3 {[%clk 0:00:09.9]} 31... Qxe2 {[%clk 0:00:54.8]}
32. Re1 {[%clk 0:00:11]} 32... Qa2 {[%clk 0:00:53.4]} 33. a5 {[%clk 0:00:12.4]}
33... g4 {[%clk 0:00:41.9]} 34. fxg4 {[%clk 0:00:13]} 34... Ng5 {[%clk
0:00:43.4]} 35. gxf5 {[%clk 0:00:07.3]} 35... Bxf5 {[%clk 0:00:44]} 36. Nh4
{[%clk 0:00:08.3]} 36... Be4 {[%clk 0:00:30]} 37. Rxe4 {[%clk 0:00:09.5]} 37...
Nxe4 {[%clk 0:00:31.9]} 38. Qf3 {[%clk 0:00:11.1]} 38... Qb1+ {[%clk 0:00:31.3]}
39. Kg2 {[%clk 0:00:12.2]} 39... Qc2+ {[%clk 0:00:32.9]} 40. Kh1 {[%clk
0:00:10.7]} 40... Ng5 {[%clk 0:00:27.2]} 41. Qf6 {[%clk 0:00:08.5]} 41... Qe4+
{[%clk 0:00:28.4]} 42. Kg1 {[%clk 0:00:09.6]} 42... Qb1+ {[%clk 0:00:24.4]} 43.
Kg2 {[%clk 0:00:10.4]} 43... Qc2+ {[%clk 0:00:25.3]} 44. Kg1 {[%clk 0:00:08.9]}
44... Qb1+ {[%clk 0:00:26]} 45. Kg2 {[%clk 0:00:10.1]} 45... Qe4+ {[%clk
0:00:27.6]} 46. Kg1 {[%clk 0:00:11.2]} 46... Re6 {[%clk 0:00:26.7]} 47. Qd8
{[%clk 0:00:10]} 47... Qb1+ {[%clk 0:00:21.3]} 48. Kg2 {[%clk 0:00:10.8]} 48...
Qe4+ {[%clk 0:00:22.2]} 49. Kg1 {[%clk 0:00:12]} 49... Nh3+ {[%clk 0:00:23.6]}
50. Kf1 {[%clk 0:00:13.2]} 50... Qh1+ {[%clk 0:00:24.8]} 51. Ke2 {[%clk
0:00:14.2]} 51... Qxh2+ {[%clk 0:00:26.3]} 52. Kd1 {[%clk 0:00:15.1]} 52... Qh1+
{[%clk 0:00:26.9]} 53. Kc2 {[%clk 0:00:16.1]} 53... Qe4+ {[%clk 0:00:27.7]} 54.
Kb2 {[%clk 0:00:17.4]} 54... Qe2+ {[%clk 0:00:28.1]} 55. Ka3 {[%clk 0:00:18.6]}
55... Qg4 {[%clk 0:00:27.1]} 56. Qd7+ {[%clk 0:00:17.8]} 56... Kg8 {[%clk
0:00:28.6]} 57. Qd8+ {[%clk 0:00:17.3]} 57... Kf7 {[%clk 0:00:30]} 58. Qd7+
{[%clk 0:00:18.1]} 58... Kg8 {[%clk 0:00:31.4]} 59. Bc5 {[%clk 0:00:18.4]} 59...
Ng5 {[%clk 0:00:24.1]} 60. a6 {[%clk 0:00:19.5]} 60... Qxg3 {[%clk 0:00:22]} 61.
Qd8+ {[%clk 0:00:18.9]} 61... Kh7 {[%clk 0:00:23.3]} 62. Qd2 {[%clk 0:00:18.2]}
62... Qg4 {[%clk 0:00:19.8]} 63. a7 {[%clk 0:00:17.9]} 63... Re8 {[%clk
0:00:21.3]} 64. Qd3+ {[%clk 0:00:18.3]} 64... e4 {[%clk 0:00:22.2]} 65. Qd6
{[%clk 0:00:19.3]} 65... Qe6 {[%clk 0:00:22.7]} 66. Qc7+ {[%clk 0:00:19]} 66...
Qf7 {[%clk 0:00:24.2]} 67. Qxc6 {[%clk 0:00:19.9]} 67... Qg7 {[%clk 0:00:22.5]}
68. Kb4 {[%clk 0:00:18.7]} 68... Qg8 {[%clk 0:00:22.1]} 69. Nf5 {[%clk
0:00:18.1]} 69... Ne6 {[%clk 0:00:19.9]} 70. Qd7+ {[%clk 0:00:18.2]} 70... Kg6
{[%clk 0:00:20.7]} 71. Ne7+ {[%clk 0:00:19.4]} 71... Rxe7 {[%clk 0:00:22.2]} 72.
Qxe7 {[%clk 0:00:19.1]} 72... Qc8 {[%clk 0:00:18.1]} 73. Bb6 {[%clk 0:00:17.2]}
73... e3 {[%clk 0:00:18.2]} 74. a8=Q {[%clk 0:00:17.3]} 74... Qxa8 {[%clk
0:00:18.6]} 75. Qxe6+ {[%clk 0:00:18.9]} 75... Kh5 {[%clk 0:00:20.1]} 76. Qh3+
{[%clk 0:00:19.2]} 76... Kg6 {[%clk 0:00:21.1]} 77. Qg4+ {[%clk 0:00:20.5]}
77... Kh7 {[%clk 0:00:22.1]} 78. Qf5+ {[%clk 0:00:20.9]} 78... Kg8 {[%clk
0:00:23]} 79. Qg6+ {[%clk 0:00:22.2]} 79... Kf8 {[%clk 0:00:24.4]} 80. Bc5#
{[%clk 0:00:23.4]} 1-0

[Event "*** Titled Tuesday 3|2 Blitz"]
[Site "Chess.com"]
[Date "2017.03.07"]
[Round "9"]
[White "workhard91"]
[Black "Generalas"]
[Result "0-1"]
[WhiteElo "2216"]
[BlackElo "2179"]
[TimeControl "180+2"]
[EndTime "15:11:18 PST"]
[Termination "Generalas won by resignation"]

1. e4 {[%clk 0:03:02]} 1... e5 {[%clk 0:02:59.9]} 2. Qh5 {[%clk 0:03:00]} 2...
Nc6 {[%clk 0:02:57.9]} 3. Bc4 {[%clk 0:03:01.1]} 3... Qf6 {[%clk 0:02:54.4]} 4.
c3 {[%clk 0:02:48.8]} 4... Qg6 {[%clk 0:02:33.1]} 5. Qxg6 {[%clk 0:02:49.2]}
5... hxg6 {[%clk 0:02:33.4]} 6. b4 {[%clk 0:02:45.3]} 6... Nf6 {[%clk
0:02:31.9]} 7. d3 {[%clk 0:02:45]} 7... a5 {[%clk 0:02:23.6]} 8. b5 {[%clk
0:02:45.4]} 8... Nd8 {[%clk 0:02:23.9]} 9. a4 {[%clk 0:02:44.7]} 9... c6 {[%clk
0:02:20.7]} 10. f3 {[%clk 0:02:38.3]} 10... d5 {[%clk 0:02:20.1]} 11. Bb3 {[%clk
0:02:39.2]} 11... Ne6 {[%clk 0:02:15.3]} 12. Ne2 {[%clk 0:02:35.1]} 12... Bc5
{[%clk 0:02:12.8]} 13. Ba3 {[%clk 0:02:24]} 13... Bd7 {[%clk 0:01:57.2]} 14.
bxc6 {[%clk 0:01:49.1]} 14... bxc6 {[%clk 0:01:57.5]} 15. Bxc5 {[%clk
0:01:37.1]} 15... Nxc5 {[%clk 0:01:57.3]} 16. Bc2 {[%clk 0:01:38.6]} 16... Rb8
{[%clk 0:01:34.2]} 17. d4 {[%clk 0:01:33.2]} 17... Rb2 {[%clk 0:01:31.1]} 18.
Kd1 {[%clk 0:01:11.2]} 18... exd4 {[%clk 0:01:28.1]} 19. cxd4 {[%clk 0:01:12.2]}
19... Ne6 {[%clk 0:01:13.6]} 20. Nbc3 {[%clk 0:00:40.4]} 20... Ke7 {[%clk
0:01:08.7]} 21. e5 {[%clk 0:00:37.6]} 21... Nh5 {[%clk 0:00:57.8]} 22. g3 {[%clk
0:00:34.7]} 22... g5 {[%clk 0:00:47]} 23. Rg1 {[%clk 0:00:24.8]} 23... g6 {[%clk
0:00:46.4]} 24. Kc1 {[%clk 0:00:25.2]} 24... Rb4 {[%clk 0:00:46.1]} 25. Na2
{[%clk 0:00:26.8]} 25... Rc4 {[%clk 0:00:42.3]} 26. Kd2 {[%clk 0:00:10.9]} 26...
Nxd4 {[%clk 0:00:40.2]} 27. Nxd4 {[%clk 0:00:10.3]} 27... Rxd4+ {[%clk
0:00:41.3]} 28. Ke3 {[%clk 0:00:12.2]} 28... Rc4 {[%clk 0:00:39]} 29. Bb3 {[%clk
0:00:13.1]} 29... Rc5 {[%clk 0:00:36.5]} 30. Kd4 {[%clk 0:00:14.5]} 30... Rc4+
{[%clk 0:00:24.7]} 31. Bxc4 {[%clk 0:00:15.3]} 31... dxc4 {[%clk 0:00:25.9]} 32.
Kxc4 {[%clk 0:00:15.9]} 32... Ng7 {[%clk 0:00:25.8]} 33. Rg2 {[%clk 0:00:16.2]}
33... Ke6 {[%clk 0:00:24]} 34. f4 {[%clk 0:00:16.2]} 34... Nf5 {[%clk
0:00:23.7]} 35. Kc3 {[%clk 0:00:13.7]} 35... gxf4 {[%clk 0:00:23]} 36. gxf4
{[%clk 0:00:15.6]} 36... Rh3+ {[%clk 0:00:23.9]} 37. Kd2 {[%clk 0:00:16.8]}
37... c5 {[%clk 0:00:24.9]} 38. Nc3 {[%clk 0:00:17.7]} 38... Bc6 {[%clk
0:00:25.4]} 39. Rf2 {[%clk 0:00:18.6]} 39... Nd4 {[%clk 0:00:26.2]} 40. Rb1
{[%clk 0:00:18.7]} 40... Kf5 {[%clk 0:00:25.2]} 41. Rb6 {[%clk 0:00:19]} 41...
c4 {[%clk 0:00:20.1]} 42. Nd1 {[%clk 0:00:12.6]} 42... Nb3+ {[%clk 0:00:20.1]}
43. Kc2 {[%clk 0:00:11.8]} 43... Bxa4 {[%clk 0:00:20.9]} 44. Nb2 {[%clk
0:00:10.1]} 44... Nd4+ {[%clk 0:00:21.4]} 45. Kb1 {[%clk 0:00:09.6]} 45... Bb3
{[%clk 0:00:22.2]} 46. Rf6+ {[%clk 0:00:10]} 46... Ke4 {[%clk 0:00:22.2]} 47.
Rxf7 {[%clk 0:00:11.9]} 47... c3 {[%clk 0:00:22]} 48. e6 {[%clk 0:00:11.9]}
48... Bxe6 {[%clk 0:00:22]} 49. Re7 {[%clk 0:00:13.4]} 49... cxb2 {[%clk
0:00:22.6]} 50. Rxb2 {[%clk 0:00:12.2]} 50... Rf3 {[%clk 0:00:22.2]} 51. Rb6
{[%clk 0:00:13.3]} 51... Rxf4 {[%clk 0:00:22.6]} 52. Rexe6+ {[%clk 0:00:14.7]}
52... Nxe6 {[%clk 0:00:23.7]} 53. Rxe6+ {[%clk 0:00:16.6]} 53... Kf5 {[%clk
0:00:24.7]} 54. Ra6 {[%clk 0:00:16.7]} 54... a4 {[%clk 0:00:25.7]} 55. Kc2
{[%clk 0:00:18]} 55... Rf2+ {[%clk 0:00:24.3]} 56. Kd3 {[%clk 0:00:19.4]} 56...
Rxh2 {[%clk 0:00:25.3]} 57. Rxa4 {[%clk 0:00:20.3]} 57... Rf2 {[%clk 0:00:18.9]}
58. Ke3 {[%clk 0:00:20.1]} 58... Rf1 {[%clk 0:00:20]} 59. Ke2 {[%clk 0:00:20.5]}
59... Rf4 {[%clk 0:00:20.9]} 60. Ra8 {[%clk 0:00:21.4]} 60... Kg4 {[%clk
0:00:21.7]} 61. Ke3 {[%clk 0:00:21.1]} 61... g5 {[%clk 0:00:22.6]} 62. Rg8
{[%clk 0:00:22.1]} 62... Rf7 {[%clk 0:00:20.1]} 63. Rh8 {[%clk 0:00:19.7]} 63...
Kg3 {[%clk 0:00:20.8]} 64. Rg8 {[%clk 0:00:20]} 64... Re7+ {[%clk 0:00:21.3]}
65. Kd2 {[%clk 0:00:20.5]} 65... g4 {[%clk 0:00:22.6]} 66. Rf8 {[%clk
0:00:20.7]} 66... Kg2 {[%clk 0:00:22.6]} 67. Rg8 {[%clk 0:00:20]} 67... g3
{[%clk 0:00:23.6]} 68. Rf8 {[%clk 0:00:21.6]} 68... Kg1 {[%clk 0:00:24.4]} 69.
Rg8 {[%clk 0:00:23.1]} 69... g2 {[%clk 0:00:25.3]} 70. Rg6 {[%clk 0:00:22.5]}
70... Re5 {[%clk 0:00:24.6]} 71. Rg7 {[%clk 0:00:22.8]} 71... Kf2 {[%clk
0:00:24.7]} 72. Rf7+ {[%clk 0:00:23.7]} 72... Kg3 {[%clk 0:00:25.5]} 73. Rg7+
{[%clk 0:00:25]} 73... Kf3 {[%clk 0:00:24.4]} 74. Kd3 {[%clk 0:00:24.5]} 74...
Rd5+ {[%clk 0:00:24.1]} 75. Kc4 {[%clk 0:00:25.3]} 75... Rd1 {[%clk 0:00:24.4]}
76. Rf7+ {[%clk 0:00:25.7]} 76... Ke4 {[%clk 0:00:24]} 77. Re7+ {[%clk 0:00:25]}
77... Kf5 {[%clk 0:00:24.8]} 0-1